Cogmind - Beta 17.1 @@@ ROGUE MODE // 2026.09.23 @ 23:34:38 Player: Lazz Result: Destroyed by B-90 Cyclops with Nova Cannon Performance ------------- Evolutions (8) 4000 Regions Visited (15) 3000 Robots Destroyed (106) 530 Value Destroyed (3498) 3498 Prototype IDs (3) 60 Alien Tech Used (0) 0 Bonus (1540) 1540 TOTAL SCORE: 12628 Bonus ------- High Alert Combat Kills 76 Follower Combat Kills 264 Entered Garrisons 200 Used RIF Installer 1000 Cogmind --------- Core Integrity 0/1450 Matter 77/300 Energy 99/100 System Corruption 5% Temperature Cool (9) Movement Core (50) Location -2/Research Parts ------- > --- POWER (3) -------- (None) > --- PROPULSION (6) --- (None) > --- UTILITY (10) ----- Advanced Signal Interpreter Advanced Terrain Scan Processor Advanced Terrain Scan Processor Relay Coupler [NC] (21) Relay Coupler [Grunt] (19) Relay Coupler [Sentry] (16) > --- WEAPON (4) ------- (None) > --- INVENTORY (5) ---- Improved Thunder Leg Linear Accelerator Linear Accelerator Improved Remote Datajack Improved Plasma Cutter Peak State ------------ > --- POWER ------------ Light Nuclear Core Neutrino Core > --- PROPULSION ------- Improved Aluminum Leg Carbon-fiber Leg Carbon-fiber Leg Titanium Leg > --- UTILITY ---------- Medium Storage Unit Core Analyzer Core Analyzer Layered Medium Armor Plating Layered Medium Armor Plating Focal Shield Relay Coupler [Grunt] > --- WEAPON ----------- Heavy Machine Gun Heavy Machine Gun Heavy Machine Gun Chainsword > --- INVENTORY -------- Light Ion Engine Advanced Heat Sink Matter Compressor Relay Coupler [Sentry] Field Laser Advanced Plasma Cannon Mini Grenade Launcher Improved Plasma Cutter [Rating: 69] Favorites ----------- Power Light Ion Engine Engine Light Ion Engine Power Core Light Nuclear Core Reactor Micro Antimatter Reactor Propulsion Carbon-fiber Leg Treads Light Treads Leg Carbon-fiber Leg Wheel Wheel Hover Unit Combat Antigrav System Flight Unit Makeshift Flight Unit Utility Improved Targeting Computer Device Seismic Detector Storage Small Storage Unit Processor Improved Targeting Computer Hackware Relay Coupler [Grunt] Protection Light Armor Plating Weapon Improved Assault Rifle Energy Gun Medium Laser Ballistic Gun Improved Assault Rifle Ballistic Cannon Linear Accelerator Launcher Mini Grenade Launcher Special Weapon Improved Remote Datajack Slashing Weapon Chainsword Piercing Weapon Force Lance Build | -11 -10 -9 -8 -8 -8 -8 -6 -5 -5 -5 -5 -5 -4 -3 -2 ------- Run | Yrd Mat Mat Mat Sto Gar Rec Fac Fac Was Fac Upp Upp Fac Res Res Slots Evolved 16 | . . 2 2 . . . 4 2 . . . . 2 2 2 Power 2 | . . . . . . . 1 . . . . . . . 1 Propulsion 4 | . . . 1 . . . 1 . . . . . 2 . . Utility 8 | . . 1 . . . . 2 2 . . . . . 2 1 Weapon 2 | . . 1 1 . . . . . . . . . . . . Parts Attached 101 | 6 1 17 5 9 22 1 6 5 1 3 8 . 2 2 13 Power 13 | 1 . 2 2 . 3 . . 1 . . 2 . . . 2 Engine 9 | 1 . 2 1 . 2 . . . . . 2 . . . 1 Core 3 | . . . 1 . 1 . . 1 . . . . . . . Reactor 1 | . . . . . . . . . . . . . . . 1 Propulsion 22 | 2 . 3 1 2 7 1 . . . 1 2 . . 1 2 Treads 7 | 2 . 2 . 2 1 . . . . . . . . . . Leg 8 | . . . 1 . 6 1 . . . . . . . . . Wheel 1 | . . 1 . . . . . . . . . . . . . Hover 2 | . . . . . . . . . . . . . . 1 1 Flight 4 | . . . . . . . . . . 1 2 . . . 1 Utility 38 | 1 1 5 1 2 7 . 3 4 1 2 3 . 2 1 5 Device 17 | . 1 3 . 1 4 . 1 1 . 2 2 . 1 . 1 Storage 4 | 1 . 1 . . . . . 1 . . . . . 1 . Processor 7 | . . 1 . . 1 . 2 . . . 1 . 1 . 1 Hackware 5 | . . . . . 1 . . . 1 . . . . . 3 Protection 5 | . . . 1 1 1 . . 2 . . . . . . . Artifact . | . . . . . . . . . . . . . . . . Weapon 28 | 2 . 7 1 5 5 . 3 . . . 1 . . . 4 Energy Gun 3 | 2 . . . . . . . . . . . . . . 1 Energy Cannon . | . . . . . . . . . . . . . . . . Ballistic Gun 15 | . . 5 1 3 3 . 3 . . . . . . . . Ballistic Cannon 1 | . . . . . . . . . . . . . . . 1 Launcher 4 | . . 2 . 2 . . . . . . . . . . . Special Weapon 1 | . . . . . . . . . . . . . . . 1 Impact Weapon . | . . . . . . . . . . . . . . . . Slashing Weapon 3 | . . . . . 2 . . . . . 1 . . . . Piercing Weapon 1 | . . . . . . . . . . . . . . . 1 Special Melee Weapon . | . . . . . . . . . . . . . . . . Unidentified Prototypes 3 | . . 1 . 1 . . . . . 1 . . . . . Parts Lost 61 | . . 13 1 2 20 . . 1 7 . . . 8 . 9 Power 8 | . . 3 . . 2 . . . . . . . 1 . 2 Propulsion 16 | . . 4 . . 5 . . . 1 . . . 3 . 3 Utility 19 | . . 1 1 1 6 . . 1 5 . . . 3 . 1 Weapon 18 | . . 5 . 1 7 . . . 1 . . . 1 . 3 Highest Loss Streak 8 | . . 6 1 1 7 . . 1 7 . . . 7 . 8 To Critical Strikes 1 | . . . . . . . . . 1 . . . . . . Average Backups 4 | 1 5 4 4 5 4 5 4 6 7 4 4 5 5 5 5 Power . | . . . . 1 1 1 . . . . . 1 . . . Propulsion . | . . . . . . 1 . . . . . . . 1 1 Utility . | . 3 2 . . . 1 1 2 3 1 . . . . . Weapon 2 | . 1 1 3 4 2 2 2 2 2 1 2 2 2 2 2 Tool/Special . | . . . . . . . . . . . . . . . . Unused Backups 10 | . . 1 1 . . . . . 3 2 . . . . 3 Power . | . . . . . . . . . . . . . . . . Propulsion 1 | . . . . . . . . . . . . . . . 1 Utility 3 | . . 1 . . . . . . 1 1 . . . . . Weapon 4 | . . . 1 . . . . . 2 . . . . . 1 Tool/Special 2 | . . . . . . . . . . 1 . . . . 1 Average Slot Usage (%) 70 | . 95 81 77 79 83 72 77 98 65 5 48 52 42 15 29 Engine 5 | . 14 6 7 9 6 9 6 3 . . 4 5 3 . . Core 1 | . . . . . 2 . 3 6 7 . . . . . . Treads 5 | . 28 15 . 5 4 5 . . . . . . . . . Leg 10 | . . . 8 9 20 21 23 23 14 . . . . . . Flight 1 | . . . . . . . . . . 1 16 17 11 . . Device 7 | . 9 17 12 1 6 . 4 7 3 2 15 17 12 . 1 Storage 1 | . 14 5 . . . . . 3 3 . . . . 2 1 Processor 8 | . . 4 9 9 9 9 9 12 9 . 4 5 9 9 12 Hackware 1 | . . . . . 1 9 6 5 3 . . . . . 4 Protection 2 | . . . 5 10 3 . . 8 6 . . . . . . Energy Gun 2 | . 28 10 . . . . . . . . . . . . . Ballistic Gun 14 | . . 18 36 33 19 . 12 17 8 1 . . . . . Slashing Weapon 4 | . . . . . 7 18 9 5 4 . 4 5 3 . . Peak Build Rating 69 | 6 8 17 25 27 32 22 52 69 69 12 42 38 49 21 48 Average Rating 26 | 5 7 12 22 22 23 20 38 65 42 6 36 38 36 18 34 On Entrance 22 | . 6 8 15 22 23 20 22 52 69 2 9 38 38 10 21 Avg Prop Armor Cover (%) 11 | . . 10 . 3 13 18 . . . . . . . . 10 Naked Turns 45 | . . . . . . . . . 8 37 . . . . . Heaviest Build 96 | 11 12 96 21 23 23 9 27 64 64 7 21 10 15 10 19 Greatest Support 60 | 40 40 40 17 40 42 45 60 60 60 6 22 22 22 16 28 Greatest Overweight (x) 4 | . . 3 4 1 4 . . 1 1 2 . . 2 . 4 Average Overweight (x) . | . . . . . . . . . . . . . . . . Largest Inventory Capacity 25 | 8 8 25 5 5 5 5 5 10 10 5 5 5 5 10 10 Average Capacity 5 | 7 8 7 5 5 5 5 5 8 7 5 5 5 5 7 6 Most Carried 10 | 4 7 8 5 5 5 5 5 9 10 5 5 5 5 7 7 Average Carried 4 | 1 5 4 4 4 4 5 4 6 7 4 4 5 4 5 5 Final Capacity 10 | 8 8 5 5 5 5 5 5 10 5 5 5 5 5 10 5 Final Carried 9 | 4 6 4 5 5 5 5 4 9 5 5 5 5 5 7 5 Class Distribution -------------------- 25% | Mutant 16% | Gunner 13% | Scavenger-Gunner 11% | Commander-Mutant 8% | Tank 7% | Commander-Gunner 7% | Derelict-Mutant 3% | Scavenger-Mutant Dominant Class ---------------- Mutant | -10/Materials Tank | -9/Materials Gunner | -8/Materials Gunner | -8/Storage Scavenger-Gunner | -8/Garrison Commander-Mutant | -8/Recycling Commander-Gunner | -6/Factory Tank | -5/Factory Mutant | -5/Waste Mutant | -5/Factory Derelict-Mutant | -5/Upper Caves Derelict-Mutant | -5/Upper Caves Derelict-Ninja | -4/Factory Mutant | -3/Research Mutant | -2/Research Resources | -11 -10 -9 -8 -8 -8 -8 -6 -5 -5 -5 -5 -5 -4 -3 -2 ----------- Run | Yrd Mat Mat Mat Sto Gar Rec Fac Fac Was Fac Upp Upp Fac Res Res Matter Collected 2383 | 260 . 361 233 337 702 17 17 99 . . 163 . 67 . 127 Remotely . | . . . . . . . . . . . . . . . . Salvage Created 3647 | 166 . 780 299 372 1327 . . 99 . . . . . . 604 Parts 220 | 12 . 52 27 18 71 . . 6 . . . . . . 34 Haulers Intercepted 2 | . . 1 1 . . . . . . . . . . . . Recyclers Shooed 2 | 1 . . . . . . . . . . . . . . 1 Parts Field Recycled . | . . . . . . . . . . . . . . . . Retrieved Matter . | . . . . . . . . . . . . . . . . Parts Self-Destructed . | . . . . . . . . . . . . . . . . Prevented . | . . . . . . . . . . . . . . . . Parts Restored . | . . . . . . . . . . . . . . . . Kills | -11 -10 -9 -8 -8 -8 -8 -6 -5 -5 -5 -5 -5 -4 -3 -2 ------- Run | Yrd Mat Mat Mat Sto Gar Rec Fac Fac Was Fac Upp Upp Fac Res Res Combat Hostiles Destroyed 82 | . . 21 10 4 32 . . 1 . . . . . . 14 Melee 8 | . . . . . 5 . . . . . . . . . 3 Guns 46 | . . 6 10 4 25 . . 1 . . . . . . . AOE 28 | . . 15 . . 2 . . . . . . . . . 11 Classes Destroyed 16 | 2 . 7 . . 6 . . . . . . . . . 1 Worker 3 | . . 1 . . . . . . . . . . . . 2 Builder 2 | . . 1 . . . . . . . . . . . . 1 Tunneler 5 | 4 . . . . . . . . . . . . . . 1 Hauler 2 | . . 1 1 . . . . . . . . . . . . Recycler 6 | 1 . 2 . 2 . . . . . . . . . . 1 Watcher 6 | . . 2 . 1 1 . . 1 . . . . . . 1 Swarmer 29 | . . 7 7 . 6 . . . . . . . . . 9 Cutter 2 | . . . . . 2 . . . . . . . . . . Grunt 25 | . . 12 . 2 11 . . . . . . . . . . Brawler 1 | . . . . . . . . . . . . . . . 1 Duelist 2 | . . . . . 1 . . . . . . . . . 1 Protector 1 | . . . . . 1 . . . . . . . . . . Sentry 17 | . . 2 3 2 8 . . 1 . . . . . . 1 Specialist 1 | . . . . . 1 . . . . . . . . . . Hunter 1 | . . . . . 1 . . . . . . . . . . Programmer 3 | . . . . . 1 . . . . . . . . . 2 Best Kill Streak 14 | 5 . 14 8 2 9 . . 1 . . . . . . 7 Combat Bots Only 9 | . . 9 8 2 9 . . 1 . . . . . . 6 Max Kills in Single Turn 5 | 1 . 5 2 1 2 . . 1 . . . . . . 4 Gunslinging 1 | . . . 1 . . . . . . . . . . . . Exploded 4 | . . 4 . . 1 . . . . . . . . . 3 Melee 1 | . . . . . 1 . . . . . . . . . 1 Uniques/NPCs Destroyed . | . . . . . . . . . . . . . . . . Combat | -11 -10 -9 -8 -8 -8 -8 -6 -5 -5 -5 -5 -5 -4 -3 -2 -------- Run | Yrd Mat Mat Mat Sto Gar Rec Fac Fac Was Fac Upp Upp Fac Res Res Hostile Shots Fired 713 | . . 201 24 23 177 . . 10 6 . 24 4 92 18 134 Missed 253 | . . 61 7 8 48 . . 4 . . 18 1 48 5 53 Hits 460 | . . 140 17 15 129 . . 6 6 . 6 3 44 13 81 Melee 14 | . . . . . 8 . . . 6 . . . . . . Projectile 446 | . . 140 17 15 121 . . 6 . . 6 3 44 13 81 AOE 1 | . . . . . 1 . . . . . . . . . . Critical Strikes 22 | . . 6 1 . 9 . . . 2 . . . 3 . 1 Damage Taken 8346 | . . 1766 184 260 2239 . . 285 257 . 50 57 870 254 2124 Core 3308 | . . 354 41 28 446 . . . 111 . 19 34 629 175 1471 Absorbed by Shields . | . . . . . . . . . . . . . . . . Ignored by Resistances 43 | . . . . . . . . 14 29 . . . . . . Core Remaining (%) 66 | 100 100 11 . . . 6 100 . . . . 83 45 86 . Volleys Fired 170 | 14 . 41 10 18 57 . . 5 . 1 . . . . 24 Largest 4 | 2 . 3 4 4 4 . . 3 . 1 . . . . 1 Hottest 113 | 90 . 113 92 92 89 . . 90 . 30 . . . . 75 Shots Fired 453 | 27 . 97 40 66 183 . . 15 . 1 . . . . 24 Gun 416 | 27 . 87 40 64 180 . . 15 . 1 . . . . 2 Cannon 1 | . . . . . . . . . . . . . . . 1 Launcher 36 | . . 10 . 2 3 . . . . . . . . . 21 Special . | . . . . . . . . . . . . . . . . Kinetic 362 | . . 61 40 64 180 . . 15 . 1 . . . . 1 Thermal 53 | 27 . 26 . . . . . . . . . . . . . Explosive 33 | . . 10 . 2 . . . . . . . . . . 21 Electromagnetic 5 | . . . . . 3 . . . . . . . . . 2 Robot Hit Streak 27 | 8 . 27 18 17 13 . . 4 . 2 . . . . 4 Robot Miss Streak 4 | 2 . 1 2 4 3 . . 2 . . . . . . 2 Penetration Max . | . . . . . . . . . . . . . . . . Secondary Targets 13 | . . 2 4 . 7 . . . . . . . . . . Max Gunslinging Chain 1 | . . 1 1 . 1 . . . . . . . . . . Shots Hit Robots 338 | 20 . 78 27 35 146 . . 9 . 1 . . 1 . 21 Core Hits 192 | 6 . 45 14 12 62 . . 5 1 1 . . . . 46 Critical Kills 1 | . . 1 . . . . . . . . . . . . . Critical Parts Destroyed 2 | . . . . . 2 . . . . . . . . . . Critical Strikes 10 | . . 2 . . 5 . . . . . . . 1 . 2 Burn 1 | . . 1 . . . . . . . . . . . . . Destroy 3 | . . 1 . . 2 . . . . . . . . . . Sever 4 | . . . . . 3 . . . . . . . 1 . . Impale 2 | . . . . . . . . . . . . . . . 2 Melee Attacks 61 | . . . . . 31 . . 1 . . . . 10 . 19 Impact . | . . . . . . . . . . . . . . . . Slashing 42 | . . . . . 31 . . 1 . . . . 10 . . Piercing 19 | . . . . . . . . . . . . . . . 19 Sneak Attacks 3 | . . . . . . . . . . . . . . . 3 Combat Hostiles . | . . . . . . . . . . . . . . . . Follow-up Attacks 3 | . . . . . 3 . . . . . . . . . . Damage Inflicted 8512 | 241 . 2202 410 565 2516 . . 204 7 22 . . 36 4 2305 Guns 4166 | 241 . 979 407 560 1706 . . 204 . 22 . . . . 47 Cannons . | . . . . . . . . . . . . . . . . Explosions 2955 | . . 1221 . . 114 . . . . . . . . . 1620 Melee 1370 | . . . . . 696 . . . . . . . 36 . 638 Ramming 21 | . . 2 3 5 . . . . 7 . . . . 4 . Kinetic 3644 | . . 745 407 560 1706 . . 204 . 22 . . . . . Thermal 475 | 241 . 234 . . . . . . . . . . . . . Explosive 2841 | . . 1221 . . . . . . . . . . . . 1620 Electromagnetic 161 | . . . . . 114 . . . . . . . . . 47 Impact . | . . . . . . . . . . . . . . . . Slashing 732 | . . . . . 696 . . . . . . . 36 . . Piercing 638 | . . . . . . . . . . . . . . . 638 Highest Corruption 5 | . 2 . . . 5 5 . . . . . . 3 . 5 Average Corruption 4 | . 2 . . . 4 5 . . . . . . 1 . 4 Corruption Purged . | . . . . . . . . . . . . . . . . Corruption Blocked . | . . . . . . . . . . . . . . . . Effects 37 | . . . . . 18 10 . . . . . . 1 . 8 Message Errors 8 | . . . . . 2 3 . . . . . . . . 3 Matter Fused 12 | . . . . . 9 3 . . . . . . . . . Heat Flow Errors 1 | . . . . . 1 . . . . . . . . . . Energy Discharges 8 | . . . . . 2 2 . . . . . . 1 . 3 Parts Rejected 1 | . . . . . 1 . . . . . . . . . . Data Loss (minor) 4 | . . . . . 1 1 . . . . . . . . 2 Data Loss (major) 2 | . . . . . 1 1 . . . . . . . . . Misfires 1 | . . . . . 1 . . . . . . . . . . Overload Shots . | . . . . . . . . . . . . . . . . Overflow Damage 199 | . . 86 . . 12 . . . . . . . . . 101 Projectiles . | . . . . . . . . . . . . . . . . Explosions 128 | . . 86 . . 12 . . . . . . . . . 30 Melee 71 | . . . . . . . . . . . . . . . 71 Knockbacks . | . . . . . . . . . . . . . . . . Impact . | . . . . . . . . . . . . . . . . Kinetic . | . . . . . . . . . . . . . . . . Secondary . | . . . . . . . . . . . . . . . . Self-Inflicted Damage 359 | . . 99 . . 65 . . . 3 . . . . 2 190 Shots 13 | . . 4 . . 3 . . . . . . . . . 6 Rammed 2 | . . . . . . . . . 1 . . . . 1 . Targets Rammed 5 | . . 1 1 1 . . . . 1 . . . . 1 . Kicked 2 | . . . 1 1 . . . . . . . . . . . Crushed 1 | . . 1 . . . . . . . . . . . . . Highest Temperature 292 | 270 . 292 53 94 145 . . 171 . . . . 6 . . Average Temperature 61 | 114 . 65 22 33 48 . . 74 . . . . 6 . . Received Heat Transfer 1978 | . . 771 45 72 693 . . 27 . . 9 30 139 84 108 Siege Activations . | . . . . . . . . . . . . . . . . Martial Activations . | . . . . . . . . . . . . . . . . Shielding Activations . | . . . . . . . . . . . . . . . . Robots Disrupted . | . . . . . . . . . . . . . . . . Combat Hostiles . | . . . . . . . . . . . . . . . . Robots Corrupted . | . . . . . . . . . . . . . . . . Combat Hostiles . | . . . . . . . . . . . . . . . . Parts Fried . | . . . . . . . . . . . . . . . . Impact Corruptions . | . . . . . . . . . . . . . . . . Robots Melted . | . . . . . . . . . . . . . . . . Combat Hostiles . | . . . . . . . . . . . . . . . . Parts Melted 4 | 2 . 2 . . . . . . . . . . . . . Heat Transferred 1350 | 644 . 706 . . . . . . . . . . . . . Parts Sabotaged . | . . . . . . . . . . . . . . . . Parts Stolen . | . . . . . . . . . . . . . . . . Parts Stripped . | . . . . . . . . . . . . . . . . Power Chain Reactions . | . . . . . . . . . . . . . . . . Alert | -11 -10 -9 -8 -8 -8 -8 -6 -5 -5 -5 -5 -5 -4 -3 -2 ------- Run | Yrd Mat Mat Mat Sto Gar Rec Fac Fac Was Fac Upp Upp Fac Res Res Maximum Alert Level 3 | . . 1 1 . 3 1 . . . . . . . . 1 Low Security (%) 69 | 100 100 48 79 100 31 68 100 100 100 100 . . 100 100 68 Level 1 18 | . . 51 20 . 22 31 . . . . . . . . 31 Level 2 10 | . . . . . 39 . . . . . . . . . . Level 3 1 | . . . . . 7 . . . . . . . . . . Level 4 . | . . . . . . . . . . . . . . . . Level 5 . | . . . . . . . . . . . . . . . . High Security . | . . . . . . . . . . . . . . . . Max Security . | . . . . . . . . . . . . . . . . Peak Influence 734 | 10 . 311 231 123 734 330 5 30 . . . . 94 96 396 Initial 330 | . . . 103 70 77 330 . . . . . . . 46 42 Average 158 | 1 . 175 150 35 369 145 . 2 . . . . 18 62 144 Influence Increases 3174 | 25 . 615 266 302 1077 . 11 40 . . . . 167 60 611 Destroy 0b10 Robot/C 1780 | . . 420 200 140 720 . . 20 . . . . . . 280 Destroy 0b10 Robot/NC 130 | 25 . 35 5 15 10 . 5 5 . . . . . . 30 Destroy Leader 294 | . . 96 52 52 30 . . 12 . . . . . . 52 Allied During Kill 106 | . . . . 51 53 . 1 1 . . . . . . . Successful Hack 78 | . . 10 7 11 21 . 5 . . . . . 24 . . Select Force Hacks 50 | . . . . . . . . . . . . . 20 . 30 Disable Machine 45 | . . . . 15 15 . . . . . . . . . 15 Anti-Garrison Action 200 | . . . . . 200 . . . . . . . . . . Destroy Structure 296 | . . 39 2 18 13 . . 2 . . . . 18 . 204 Lose Combat Pursuer 195 | . . 15 . . 15 . . . . . . . 105 60 . Influence Decreases 2786 | 25 . 370 342 352 462 734 11 40 . . . . 78 73 299 Entered New Map 764 | . . . 142 99 42 404 . . . . . . . 43 34 Time Decay 1112 | 25 . 250 190 211 . 110 11 40 . . . . 60 30 185 Lost Part 428 | . . 120 10 . 200 . . . . . . . 18 . 80 Lost Ally 220 | . . . . . 220 . . . . . . . . . . Purge Threat 262 | . . . . 42 . 220 . . . . . . . . . Squads Dispatched 23 | . 1 5 . 2 . . . 1 . 1 . . 5 1 7 Investigation 9 | . . 2 . . . . . 1 . 1 . . 3 1 1 Extermination 2 | . . . . . . . . . . . . . 1 . 1 Reinforcement 8 | . 1 3 . . . . . . . . . . 1 . 3 Assault . | . . . . . . . . . . . . . . . . Garrison 4 | . . . . 2 . . . . . . . . . . 2 Intercept . | . . . . . . . . . . . . . . . . Searches Triggered . | . . . . . . . . . . . . . . . . Construction Impeded 2 | . . 1 . . . . . . . . . . . . 1 Haulers Reinforced 1 | . . . . . . . . . . . . . . . 1 Active Scanning Responses . | . . . . . . . . . . . . . . . . Cargo Convoy Interrupts . | . . . . . . . . . . . . . . . . Stealth | -11 -10 -9 -8 -8 -8 -8 -6 -5 -5 -5 -5 -5 -4 -3 -2 --------- Run | Yrd Mat Mat Mat Sto Gar Rec Fac Fac Was Fac Upp Upp Fac Res Res Distress Signals 10 | . . 3 . 2 1 . . . . . . . 1 . 3 Communications Jammed . | . . . . . . . . . . . . . . . . Distress Signals . | . . . . . . . . . . . . . . . . Times Spotted 168 | . . 32 10 9 42 . . 3 6 . 6 4 25 7 24 Peak Tracking Total 12 | . 2 12 8 3 7 . . 1 6 . 5 4 12 4 9 Tactical Retreats 11 | . . 1 . . 1 . . . . . 3 . 5 1 . ECM-based Alert Blocks 16 | . . . . . . . . . . . 8 . 8 . . Traps | -11 -10 -9 -8 -8 -8 -8 -6 -5 -5 -5 -5 -5 -4 -3 -2 ------- Run | Yrd Mat Mat Mat Sto Gar Rec Fac Fac Was Fac Upp Upp Fac Res Res Traps Triggered 9 | . 1 2 . 3 1 . . 1 . . . . . . 1 Indirectly . | . . . . . . . . . . . . . . . . Trap Hack Attempts . | . . . . . . . . . . . . . . . . Triggered . | . . . . . . . . . . . . . . . . Disarmed . | . . . . . . . . . . . . . . . . Reprogrammed . | . . . . . . . . . . . . . . . . Reused . | . . . . . . . . . . . . . . . . Traps Extracted . | . . . . . . . . . . . . . . . . Installed . | . . . . . . . . . . . . . . . . Triggered . | . . . . . . . . . . . . . . . . Machines | -11 -10 -9 -8 -8 -8 -8 -6 -5 -5 -5 -5 -5 -4 -3 -2 ---------- Run | Yrd Mat Mat Mat Sto Gar Rec Fac Fac Was Fac Upp Upp Fac Res Res Machines Disabled 8 | . . 2 . 1 4 . . . . . . . . . 1 Max in Single Turn 3 | . . 1 . 1 3 . . . . . . . . . 1 Garrison Relay 1 | . . . . . 1 . . . . . . . . . . Machines Repaired . | . . . . . . . . . . . . . . . . Machines Dismantled . | . . . . . . . . . . . . . . . . Machines Sabotaged . | . . . . . . . . . . . . . . . . Overloaded Fab Kills . | . . . . . . . . . . . . . . . . Hacking | -11 -10 -9 -8 -8 -8 -8 -6 -5 -5 -5 -5 -5 -4 -3 -2 --------- Run | Yrd Mat Mat Mat Sto Gar Rec Fac Fac Was Fac Upp Upp Fac Res Res Machines Accessed 25 | . . 3 1 3 2 3 1 2 . 2 . . 6 1 1 Terminals 16 | . . 2 1 2 2 3 1 1 . 2 . . 2 . . Fabricators 4 | . . . . . . . . 1 . . . . 2 1 . Repair Stations . | . . . . . . . . . . . . . . . . Recycling Units . | . . . . . . . . . . . . . . . . Scanalyzers 2 | . . 1 . . . . . . . . . . 1 . . Garrison Access 3 | . . . . 1 . . . . . . . . 1 . 1 Total Hacks 54 | . . 10 2 7 5 6 2 4 . 4 . . 10 3 1 Successful 18 | . . 4 1 4 2 2 2 . . . . . 2 . 1 Failed 36 | . . 6 1 3 3 4 . 4 . 4 . . 8 3 . Catastrophic 8 | . . . . . 1 1 . 1 . 1 . . 3 1 . Database Lockouts . | . . . . . . . . . . . . . . . . Manual 29 | . . 8 . 4 . 6 . 4 . . . . 6 . 1 Terminals 36 | . . 8 2 6 5 6 2 1 . 4 . . 2 . . Fabricators 10 | . . . . . . . . 3 . . . . 4 3 . Repair Stations . | . . . . . . . . . . . . . . . . Recycling Units . | . . . . . . . . . . . . . . . . Scanalyzers 3 | . . 2 . . . . . . . . . . 1 . . Garrison Access 5 | . . . . 1 . . . . . . . . 3 . 1 Terminal Hacks 10 | . . . 1 3 2 2 2 . . . . . . . . Open Door 2 | . . . . 1 1 . . . . . . . . . . Branch Access Points 1 | . . . 1 . . . . . . . . . . . . Terminal Index 1 | . . . . . . . 1 . . . . . . . . Alert Level 1 | . . . . . . . 1 . . . . . . . . Unreport Threat 4 | . . . . 2 . 2 . . . . . . . . . Patrol Navigation 1 | . . . . . 1 . . . . . . . . . . Fabricator Hacks . | . . . . . . . . . . . . . . . . Repair Station Hacks . | . . . . . . . . . . . . . . . . Recycling Unit Hacks . | . . . . . . . . . . . . . . . . Scanalyzer 2 | . . 2 . . . . . . . . . . . . . Retrieve Study 2 | . . 2 . . . . . . . . . . . . . Garrison Access Hacks 1 | . . . . 1 . . . . . . . . . . . Unlock Access 1 | . . . . 1 . . . . . . . . . . . Unauthorized Hacks 5 | . . 2 . . . . . . . . . . 2 . 1 Terminals 2 | . . 2 . . . . . . . . . . . . . Skim 2 | . . 2 . . . . . . . . . . . . . Fabricators 1 | . . . . . . . . . . . . . 1 . . Download 1 | . . . . . . . . . . . . . 1 . . Repair Stations . | . . . . . . . . . . . . . . . . Recycling Units . | . . . . . . . . . . . . . . . . Scanalyzers . | . . . . . . . . . . . . . . . . Garrison Access 2 | . . . . . . . . . . . . . 1 . 1 Restock 1 | . . . . . . . . . . . . . 1 . . Eject 1 | . . . . . . . . . . . . . . . 1 Data Cores Recovered 1 | . . . . . . . 1 . . . . . . . . Used . | . . . . . . . . . . . . . . . . Hacking Detections 22 | . . 3 1 2 1 3 1 2 . 2 . . 6 1 . Full Trace Events 7 | . . 1 . . 1 . . 1 . 1 . . 2 1 . Feedback Events 1 | . . . . . . . . . . . . . 1 . . Corruption 1 | . . . . . . . . . . . . . 1 . . Feedback Blocked . | . . . . . . . . . . . . . . . . Robot Schematics Acquired 1 | . . . . . . . . . . . . . 1 . . Robots Built . | . . . . . . . . . . . . . . . . Authchips . | . . . . . . . . . . . . . . . . Time . | . . . . . . . . . . . . . . . . Total Robot Build Rating . | . . . . . . . . . . . . . . . . Part Schematics Acquired . | . . . . . . . . . . . . . . . . Parts Built . | . . . . . . . . . . . . . . . . Authchips . | . . . . . . . . . . . . . . . . Time . | . . . . . . . . . . . . . . . . Total Part Build Rating . | . . . . . . . . . . . . . . . . Part Studies Acquired 2 | . . 2 . . . . . . . . . . . . . Parts Repaired . | . . . . . . . . . . . . . . . . Time . | . . . . . . . . . . . . . . . . Parts Recycled . | . . . . . . . . . . . . . . . . Recycled Matter . | . . . . . . . . . . . . . . . . Retrieved Matter . | . . . . . . . . . . . . . . . . Retrieved Components . | . . . . . . . . . . . . . . . . Parts Scanalyzed . | . . . . . . . . . . . . . . . . Part Schematics Acquired . | . . . . . . . . . . . . . . . . Parts Damaged . | . . . . . . . . . . . . . . . . Bothacking | -11 -10 -9 -8 -8 -8 -8 -6 -5 -5 -5 -5 -5 -4 -3 -2 ------------ Run | Yrd Mat Mat Mat Sto Gar Rec Fac Fac Was Fac Upp Upp Fac Res Res Used RIF Installer 2 | . . . . . 2 . . . . . . . . . . Robot Detection 1 | . . . . . 1 . . . . . . . . . . Robots Hacked . | . . . . . . . . . . . . . . . . Non-combat . | . . . . . . . . . . . . . . . . Combat . | . . . . . . . . . . . . . . . . Robot Hacks Applied . | . . . . . . . . . . . . . . . . Relay Couplers Released 8 | . . . . . 5 . . . . . . . . . 3 Ejected 3 | . . . . . . . . . . . . . . . 3 Machine Destruction 5 | . . . . . 5 . . . . . . . . . . Attached 5 | . . . . . 1 . . . 1 . . . . . 3 Fabnet Peak Effective % . | . . . . . . . . . . . . . . . . Robots Rewired 8 | . . . . . 8 . . . . . . . . . . Allies Hacked 2 | . . . . . 2 . . . . . . . . . . Hacks Repelled . | . . . . . . . . . . . . . . . . Allies | -11 -10 -9 -8 -8 -8 -8 -6 -5 -5 -5 -5 -5 -4 -3 -2 -------- Run | Yrd Mat Mat Mat Sto Gar Rec Fac Fac Was Fac Upp Upp Fac Res Res Total Allies 18 | . . . . 10 8 . . . . . . . . . . Largest Group 10 | . . . . 10 9 4 4 4 . . . . . . . Highest-Rated Group 173 | . . . . 173 157 62 62 62 . . . . . . . Highest-Rated Ally 39 | . . . . 29 39 16 16 16 . . . . . . . Total Orders . | . . . . . . . . . . . . . . . . Ally Attacks 112 | . . . . 20 88 . 1 3 . . . . . . . Total Damage 1414 | . . . . 230 1123 . 15 46 . . . . . . . Kills 10 | . . . . 3 6 . 1 . . . . . . . . Allies Corrupted 1 | . . . . . 1 . . . . . . . . . . Allies Melted . | . . . . . . . . . . . . . . . . Intel | -11 -10 -9 -8 -8 -8 -8 -6 -5 -5 -5 -5 -5 -4 -3 -2 ------- Run | Yrd Mat Mat Mat Sto Gar Rec Fac Fac Was Fac Upp Upp Fac Res Res Active Infowar (turns) 1830 | . 141 665 359 . . . . . . 25 237 19 215 . 169 Sensors 169 | . . . . . . . . . . . . . . . 169 IFF 454 | . . . . . . . . . . . 223 19 212 . . Terrain 412 | . . 100 168 . . . . . . . . . 144 . . Seismic 1165 | . 141 665 359 . . . . . . . . . . . . ECM 494 | . . . . . . . . . . 25 237 19 213 . . Robot Analysis Total . | . . . . . . . . . . . . . . . . Derelict Logs Recovered 1 | . . . . . . . . . . . . 1 . . . Drone Launches . | . . . . . . . . . . . . . . . . Drone Recoveries . | . . . . . . . . . . . . . . . . Exploration | -11 -10 -9 -8 -8 -8 -8 -6 -5 -5 -5 -5 -5 -4 -3 -2 ------------- Run | Yrd Mat Mat Mat Sto Gar Rec Fac Fac Was Fac Upp Upp Fac Res Res Turns Passed 5281 | 154 196 665 397 500 1295 301 132 353 94 82 250 19 308 72 463 Spaces Moved 3826 | 66 111 330 162 211 664 181 91 231 105 139 519 44 579 86 307 Core 436 | 8 . 29 10 . 1 . . . 71 79 . . 28 8 202 Treads 832 | 58 111 228 . 79 253 103 . . . . . . . . . Legs 1128 | . . . 152 132 410 78 91 231 34 . . . . . . Wheels 73 | . . 73 . . . . . . . . . . . . . Hover 183 | . . . . . . . . . . . . . . 78 105 Flight 1174 | . . . . . . . . . . 60 519 44 551 . . Fastest Speed 40 | 50 160 95 130 160 105 123 122 122 50 40 40 44 40 50 50 Average Speed 103 | 146 160 151 187 185 131 144 122 138 78 51 43 44 43 77 71 Slowest Speed 320 | 160 160 320 250 200 250 160 123 192 192 150 44 44 170 80 250 Overloaded Moves . | . . . . . . . . . . . . . . . . Propulsion Burnouts . | . . . . . . . . . . . . . . . . Robots Hopped 16 | . . . . . . . . . . . 2 . 14 . . Potential Cave-ins 3 | . . . . . . . . . . . . . . . 3 Cave-ins Triggered 1 | . . . . . 1 . . . . . . . . . . Exploration Rate (%) 26 | 4 25 44 18 28 60 42 4 6 68 3 63 15 27 2 10 Regions Visited 15 Branch Regions 4 Pre-discovered Areas . | . . . . . . . . . . . . . . . . Known Exits Taken 2 | . . . 1 1 . . . . . . . . . . . Unknown Exits Taken 10 | 1 1 1 . . . 1 1 . . 1 1 1 1 1 . Scrap Searched 2 | . . . . . . . . . . . 2 . . . . Spaces Dug 14 | . . . . . . . . 1 . . . . 9 . 4 Terrain Destroyed 180 | . . 41 . 15 . . . 1 . . . . 9 . 114 Melee 13 | . . . . . . . . 1 . . . . 9 . 3 Projectile 1 | . . . . . . . . . . . . . . . 1 AOE 166 | . . 41 . 15 . . . . . . . . . . 110 Terrain Rammed . | . . . . . . . . . . . . . . . . Walls Destroyed . | . . . . . . . . . . . . . . . . Machines Disabled . | . . . . . . . . . . . . . . . . Actions | -11 -10 -9 -8 -8 -8 -8 -6 -5 -5 -5 -5 -5 -4 -3 -2 --------- Run | Yrd Mat Mat Mat Sto Gar Rec Fac Fac Was Fac Upp Upp Fac Res Res Total 4673 | 93 130 417 229 272 926 221 109 252 116 150 535 43 607 90 483 Wait 357 | 4 16 11 46 16 57 39 9 2 8 . 10 . 26 . 113 Move 3784 | 65 110 329 161 211 663 180 90 231 104 138 514 43 553 85 307 Hop 13 | . . . . . . . . . . . 2 . 11 . . Pick Up 34 | 4 3 7 3 2 2 . 1 5 1 3 . . 1 2 . Fast Attach 77 | 6 . 9 3 5 18 1 6 4 . 2 7 . 2 2 12 Attach 25 | . 1 9 1 . 3 . 2 1 1 2 1 . 1 . 3 Detach 9 | . . 2 . . . . . . 1 1 1 . 1 . 3 Swap 17 | . . 4 2 5 5 . . 1 . . . . . . . Drop 24 | . . 4 2 2 5 1 1 2 . 3 . . 2 . 2 Fire 170 | 14 . 41 10 18 57 . . 5 . 1 . . . . 24 Melee 56 | . . . . . 26 . . 1 . . . . 10 . 19 Ram 2 | . . . . . . . . . 1 . . . . 1 . Kick 2 | . . . 1 1 . . . . . . . . . . . Crush 1 | . . 1 . . . . . . . . . . . . . Escape Stasis 10 | . . . . 10 . . . . . . . . . . . Rewire 92 | . . . . 2 90 . . . . . . . . . . Trap . | . . . . . . . . . . . . . . . . Miscellaneous . | . . . . . . . . . . . . . . . . Route ------- -11/Scrapyard -10/Materials -9/Materials (discovered 2 exits: *Mat / [*Min]) -8/Materials (discovered 2 exits: *Sto x2) -8/Storage -8/Garrison -8/Recycling -6/Factory -5/Factory -5/Waste -5/Factory -5/Upper Caves -5/Upper Caves -4/Factory -3/Research -2/Research History --------- Turn | Location | Event 3 | -11/Scrapyard | Discovered new exit (range 15) 155 | -11/Scrapyard | Entered Materials 307 | -10/Materials | Build established: Mutant 329 | -10/Materials | Discovered new exit (range 8) 351 | -10/Materials | Entered another Materials area 351 | -9/Materials | Evolved 2 slots: Utility x1, Weapon x1 542 | -9/Materials | Destroyed 7 combat bots 546 | -9/Materials | Lost 3 parts (1p1n1w) 645 | -9/Materials | Discovered new exit (range 12) 701 | -9/Materials | Destroyed 9 combat bots 709 | -9/Materials | Lost 6 parts (1p1u4w) 788 | -9/Materials | Core integrity fell below 50% 982 | -9/Materials | Discovered new exit (range 15) 991 | -9/Materials | Lost 3 parts (1p2n) 997 | -9/Materials | Core integrity fell below 20% 1016 | -9/Materials | Entered another Materials area 1016 | -8/Materials | Evolved 2 slots: Propulsion x1, Weapon x1 1045 | -8/Materials | Identified exit to Storage 1192 | -8/Materials | Destroyed 8 combat bots 1206 | -8/Materials | Build established: Gunner 1413 | -8/Materials | Entered Storage 1790 | -8/Storage | Garrison activated, responded to threat 1828 | -8/Storage | Assisted by bots powering up and referring to "LRC-V3" 1913 | -8/Storage | Identified exit to Garrison 1913 | -8/Storage | Entered Garrison 1913 | -8/Garrison | Accompanied by 9 allies 1959 | -8/Garrison | Triggered checkpoint 2098 | -8/Garrison | Lost 8 allies 2120 | -8/Garrison | Destroyed 9 combat bots 2120 | -8/Garrison | Lost 4 parts (1p3n) 2211 | -8/Garrison | Triggered checkpoint 2249 | -8/Garrison | Installed Relay Interface Framework 2268 | -8/Garrison | Discovered new exit (range 8) 2360 | -8/Garrison | Build established: Scavenger-Gunner 2482 | -8/Garrison | Crushed by falling debris 2549 | -8/Garrison | Triggered checkpoint 2593 | -8/Garrison | Core integrity fell below 50% 2625 | -8/Garrison | Lost 4 parts (1u3w) 2731 | -8/Garrison | Triggered checkpoint 2818 | -8/Garrison | Core integrity fell below 20% 2840 | -8/Garrison | Lost 7 parts (1p2n2u2w) 2968 | -8/Garrison | Expanded RIF knowledge: Robot Detection 3000 | -8/Garrison | Garrison Relay disabled 3208 | -8/Garrison | Entered Recycling 3208 | -8/Recycling | Accompanied by 4 allies 3237 | -8/Recycling | Build established: Commander-Mutant 3459 | -8/Recycling | Discovered new exit (range 6) 3509 | -8/Recycling | Entered Factory 3509 | -6/Factory | Accompanied by 4 allies 3509 | -6/Factory | Evolved 4 slots: Power x1, Propulsion x1, Utility x2 3625 | -6/Factory | Discovered new exit (range 2) 3641 | -6/Factory | Entered another Factory area 3641 | -5/Factory | Accompanied by 4 allies 3641 | -5/Factory | Evolved 2 slots: Utility x2 3858 | -5/Factory | Lost 4 allies 3994 | -5/Factory | Sucked down chute 3994 | -5/Factory | Entered Waste 4006 | -5/Waste | Spotted C-40 Crusher 4019 | -5/Waste | Spotted C-40 Crusher 4046 | -5/Waste | Crushed by Compactor (1 part destroyed, 2 dropped) 4047 | -5/Waste | Crushed by Compactor (1 part destroyed, 2 dropped) 4049 | -5/Waste | Crushed by Compactor (1 part destroyed, 2 dropped) 4050 | -5/Waste | Crushed by Compactor (1 part destroyed, 2 dropped) 4055 | -5/Waste | Spotted C-40 Crusher 4062 | -5/Waste | Spotted C-40 Crusher 4069 | -5/Waste | Crushed by Compactor (1 part destroyed, 2 dropped) 4075 | -5/Waste | Spotted C-40 Crusher 4080 | -5/Waste | Discovered new exit (range 16) 4080 | -5/Waste | Crushed by Compactor (1 part destroyed) 4081 | -5/Waste | Spotted C-40 Crusher 4088 | -5/Waste | Entered Factory 4111 | -5/Factory | Lost 7 parts (1n5u1w) 4162 | -5/Factory | Discovered new exit (range 5) 4170 | -5/Factory | Entered Upper Caves 4175 | -5/Upper Caves | Found DCF Scrap (14 items) 4210 | -5/Upper Caves | Spotted B-75 Beast 4412 | -5/Upper Caves | Discovered new exit (range 4) 4415 | -5/Upper Caves | Build established: Derelict-Mutant 4420 | -5/Upper Caves | Entered another Upper Caves area 4435 | -5/Upper Caves | Learned Factory trap positions 4435 | -5/Upper Caves | Discovered new exit (range 10) 4439 | -5/Upper Caves | Entered Factory 4439 | -4/Factory | Evolved 2 slots: Propulsion x2 4440 | -4/Factory | Loaded intel: 85 trap records 4690 | -4/Factory | Lost 7 parts (1p2n3u1w) 4728 | -4/Factory | Core integrity fell below 50% 4743 | -4/Factory | Discovered new exit (range 5) 4747 | -4/Factory | Entered Research 4747 | -3/Research | Evolved 2 slots: Utility x2 4757 | -3/Research | Discovered new exit (range 16) 4819 | -3/Research | Entered another Research area 4819 | -2/Research | Evolved 2 slots: Power x1, Utility x1 4959 | -2/Research | Build established: Mutant 5089 | -2/Research | Garrison activated, responded to threat 5117 | -2/Research | Core integrity fell below 50% 5139 | -2/Research | Core integrity fell below 20% 5146 | -2/Research | Lost 8 parts (2p3n1u2w) 5272 | -2/Research | Spotted B-90 Cyclops 5282 | -2/Research | Destroyed by B-90 Cyclops with Nova Cannon Last Messages --------------- 05181_ U-05 Engineer lays Concrete. 05182_ The unstable cave ceiling collapses. 05182_ U-05 Engineer lays Concrete. 05184_ L-61 Swordsman destroyed. 05184_ ALERT: Construction progress impeded, dispatching reinforcements to local area. 05189_ System corrupted: Component data lost. 05205_ Acquired Linear Accelerator. 05213_ System corrupted: Component data lost. 05220_ ALERT: Unscheduled coupler replacement inbound for Garrison vPm.7n. 05261_ Mni. Grenade Launcher destroyed. 05261_ Destroyed Mni. Grenade Launcher. 05262_ A-15 Conveyor calls for reinforcements. 05262_ ALERT: Hostile activity reported, dispatching reinforcements to area. 05262_ A-15 Conveyor sends out distress signal. 05276_ ALERT: Suspicious intruders detected, dispatching Cutter reinforcements to area. 05277_ O&ZTTFTGY&XT2&Z2FJDQ%EK>V Map ----- +----------------------------------------------------+ | #?????????????????????????????????????????????? | | #?????????????????????????????????????????????? | | #?????????????????????????????????????????????? | | #?????????????????????????????????????????????? | | ## ######????????????????????????????????????????? | | ?# # #????????????????????????????????????????? | | ## + #????????????????????????????????????????? | | # # ! #????????????????????????????????????????? | | # # !#????????????????????????????????????????? | | / # #????????????????????????????????????????? | | ## #????????????????????????????????????????? | | ! # ! #????????????????????????????????????????? | | #????????????????????????????????????????? | | #?##????????????????????????????????????????? | | #???????????????????????????????????????????? | | #??????????#######??????????????????????????? | | #??????????# #??????????????????????????? | | ######???????# #??????????????????????????? | | #???????# #??????????????????????????? | | ##+#????# #??????????????????????????? | | g #????# #??????????????????????????? | | g #????# ########### #??????????? | | g #????# + H ???????????? | | ####### g #????# # ####??????????????????? | | ??#####+##+###### # #?????????????????????? | | ??# ## # @ #?????????????????????? | | ??# ## # #?????????????????????? | | ??# ## # #?????????????????????? | | ??# """ """ ####+";; #?????????????????????? | | ??# """ """ # #?????????????????????? | | ??# """ """ + #?????????????????????? | | ??# """ """ " #????????Y????????????? | | ??# """ """ # !!! +?????????????????????? | | ??# """ """ # =! #?????????????????????? | | ??#? """ """ # =! #?????????????????????? | | ?????? # BB #?????????????????????? | | ?????? ####;BB# ????????????????????? | | ??????##########??## # ???????????????????? | | ???????????????????#### ??????????????????? | | ??????????????????????# ??????????????????? | | ??????????????????????? ???????????????????? | | ???????????????????????? ?????????????????????? | | ?????????????????????????????????????????????????? | | ?????????????????????????????????????????????????? | | ?????????????????????????????????????????????????? | | ?????????????????????????????????????????????????? | | ?????????????????????????????????????????????????? | | ?????????????????????????????????????????????????? | | ?????????????????????????????????????????????????? | | ?????????????????????????????????????????????????? | +----------------------------------------------------+ Best States ------------- Heat Dissipation 59 Energy Generation 28 Energy Capacity 375 Matter Stores 300 Matter Capacity 300 Sight Range 16 Robot Scan Range 16 Terrain Scan Range 24 Terrain Scan Density 410 ECM Strength 1 Power Amplification 20 Armor Coverage 450 Resistance: KI 20 Resistance: TH 25 Evasion (%) 62 Targeting Accuracy 11 Core Analysis 9 Recoil Reduction 6 Relay Coupler Types 3 Relay Coupler Value 56 Item Schematics ----------------- None Robot Schematics ------------------ Y-64 Sentinel | -4/Factory | Downloaded Fabricated ------------ Nothing Repaired ---------- Nothing Studied --------- Lgt. Treads | -9/Materials | Hacked Hvy. Assault Rifle | -9/Materials | Hacked Alien Tech Used ----------------- None Achievements -------------- May I Have Another? Challenges ------------ None Game ------ Seed JammingNodeInterpreter Manual? 0 Play Time 00:55:57 Cumulative 325.2 hours Start 2026.09.23 @ 19:15:39 End 2026.09.23 @ 23:34:38 Sessions 3 Manual Loads 0 Difficulty Rogue Special Mode None Game No. 405 Rogue 405 Adventurer 0 Explorer 0 Win Type - Total 11 Types 8/0/1/1/0/0/0/1/0/0 Lore% 82 Gallery% 70 Achievement% 60 Wizard Run 0 Options --------- Layout 2 ASCII 0 Keyboard 0 Movement Mouse Keybinds 0 Fullscreen 1 Font 16/SmallcapsGlow Map View 50x49 Zoom Use 0% Tactical HUD 1 Map Filters NONE Filters NONE Steam SD RUN: 9c487aab-2d6c-4c76-bd82-155061d01ab3